Workbook

Sheet SCR+Water Injection TCI
B1: Capital Costs for SCR and Water Injection on the Simple Cycle Gas Turbines (EU IDs 1 and 2)
J3: Shaded cells indicate user inputs.
B4: Total Capital Investment Determination - Water Injection + SCR | J4: Date:
B5: Project: | D5: GVEA Zehnder PM2.5 BACT Analysis - Frame 5 CTs (EU ID 1 and 2, cost per turbine) | J5: Prepared By:
J6: Checked By:
B7: *Notes regarding pertinent cost information and cost exclusion reasoning is included on the separate footnote reference page. | J7: Rev:
B8: Capital Costs
B9: DIRECT COSTS | E9: QTY | F9: UNIT | G9: UNIT COST | H9: TOTAL MATERIALS COST | I9: TOTAL LABOR COST
B11: (1) | C11: Purchased equipment and material costs
C12: (a) | D12: Basic equipment
D13: Water Injection1 | E13: 1 | F13: EA | G13: 1250000 | H13: =E13*G13 -> 1250000
D14: SCR2,3 | E14: 1 | F14: EA | G14: 3000000 | H14: =E14*G14 -> 3000000
D15: Reagent Prep/Water Treatment/Structure | E15: 1 | F15: EA | G15: =4387000/2 -> 2193500 | H15: =E15*G15 -> 2193500 | J15: TOTAL = | K15: =SUM(H13:H15) -> 6443500
C17: (b) | D17: Instrumentation
D18: Total Instrumentation4 | F18: EA | H18: =E18*G18 -> 0
J19: TOTAL = | K19: =SUM(H18:H18) -> 0
C20: (c) | D20: Freight
D21: Injection System Freight | F21: % MATL COST | I21: =G21*H13 -> 0
J22: TOTAL = | K22: =SUM(I21:I21) -> 0
C23: (d) | D23: Labor
D24: Labor - offsite fab | F24: MH | I24: =E24*G24 -> 0
D25: Labor - onsite | F25: MH | I25: =E25*G25 -> 0
C27: (e ) | D27: Startup Spares
D28: Startup Spare Parts for SCR | E28: 0.005 | F28: % | H28: =E28*G14 -> 15000
J29: TOTAL = | K29: =H28 -> 15000
C30: (f) | D30: Vendor representatives fees
D31: Fab Site Vendor Representatives fees (enter no. of days and daily rate) | E31: 10 | F31: Days | G31: 1800 | I31: =G31*E31 -> 18000
D32: Onsite Vendor Representatives fees (enter no. of days and daily rate) | E32: 8 | F32: Days | G32: 2500 | I32: =G32*E32 -> 20000
J33: TOTAL = | K33: =SUM(I31:I32) -> 38000
B34: Purchased Equipment and Material Cost (PEMC) | E34: All above costs included in vendor scope except SCR spares and SCR vendor rep. fees | J34: PEMC = | K34: =SUM(K15:K33) -> 6496500
B36: (2) | C36: Direct Installation Costs5,6
C37: (a) | D37: Concrete | F37: CY | H37: =E37*G37 -> 0 | K37: =H37+I37 -> 0
C38: (b) | D38: Piling | F38: TON | H38: 0 | K38: 0
C39: (c) | D39: Structural steel | F39: TON | H39: 0 | K39: 0
C40: (d) | D40: Electrical | F40: LOT | H40: 0 | K40: 0
C41: (e ) | D41: Painting | F41: SF | H41: 0 | K41: 0
C42: (f) | D42: Insulation | F42: LOT | H42: 0 | K42: 0
C43: (g) | D43: Abovegrade piping | F43: LF | H43: 0 | K43: 0
C44: (h) | D44: Functional Checkouts
D45: Functional Checkout - fab site, enter %: | F45: % offsite fab labor | I45: =G45*I24 -> 0 | K45: =H45+I45 -> 0
D46: Functional Checkout - onsite, enter % | F46: % onsite fab labor | I46: =G46*I25 -> 0 | K46: =H46+I46 -> 0
D47: Contractor Commissioning, enter %: | F47: % of equipment total cost | I47: =G47*K15 -> 0 | K47: =H47+I47 -> 0
B48: Direct Installation Costs (DIC) | J48: DIC = | K48: =H13+(H14*2) -> 7250000
B51: Total Direct Costs (TDC) | J51: TDC = (PEMC) + (DIC) = | K51: =K34+K48 -> 13746500
B54: INDIRECT COSTS
B55: (3) | C55: Engineering, Procurement & Construction Support Services | E55: 0.22 | F55: % TDC | I55: =E55*K51 -> 3024230
B56: (4) | C56: Performance tests | E56: 1 | F56: EA | G56: 10000 | I56: =E56*G56 -> 10000
B57: Total Indirect Costs (TIC) | J57: TIC = | K57: =SUM(I55:I56) -> 3034230
B60: MANAGEMENT AND CONTINGENCY COSTS
B61: (5) | C61: Unit Operator Costs7 | F61: % TDC | K61: Excluded in this estimate.
B62: (6) | C62: Contingency | E62: 0.3 | F62: % PEMC | I62: =E62*K34 -> 1948950
B63: Total Management and Contingency Costs (TM&CC) | J63: TM & CC = | K63: =SUM(I61:I62) -> 1948950
B66: TOTAL CAPITAL INVESTMENT (TCI) | J66: TCI = (TDC)+(TIC)+(TM&CC) = | K66: =K51+K57+K63 -> 18729680
B68: Footnotes:
B69: 1 | C69: For the water injection option, costs have been included for a water treatment system. Zehnder does not have any water treatment system, thus would need reverse osmosis, electro de-ionization, storage tanks, small pumps, and interconnecting piping. It is unlikely this equipment and reagent preparation equipment would fit inside the existing turbine building as it is all essential for normal maintenance and operation.
B70: 2 | C70: Source of SCR Capital Costs: ATCO Emissions Management. These were supply-only costs given in a range for the Frame 5s. The highpoint of the range provided ($2 – $3 million) was used.
B71: 3 | C71: Costs for reagent prep equipment and additional structures are discussed in a separately submitted CBI package.
B72: 4 | C72: Continuous emissions monitoring system is included in capital costs under Reagent Prep/Water Treatment/Structure.
B73: 5 | C73: Construction costs associated directly with SCR installation were conservatively estimated at double the capital cost. This seems reasonable given the current footprint of the turbine building. Additional structure costs were included under part (1)(a) This should be viewed as an engineering estimate only.
B74: 6 | C74: Construction costs associated directly with water injection installation was conservatively estimated at half the capital cost. This is based on the assumption that some water treatment system work in addition to SCR treated water needs will be required to add water injection. This should be viewed as an engineering estimate only.
B75: 7 | C75: Unit operator costs were excluded as these costs were not specified in vendor quotes and/or appropriate literature.
B76: 8 | C76: Annual direct cost for SCR power consumption were excluded as vendor quotes did not specify system power requirements. However the reagent solutions will require continual heating to keep them in liquid form and a notable station load compared to the unit actual operation is expected.

Sheet SCR+Water Injection CE
B1: SCR and Water Injection on the Simple Cycle Gas Turbines (EU IDs 1 and 2)
I3: Shaded cells indicate user inputs
B4: Cost Effectiveness Determination - Water Injection + SCR | J4: Date:
B5: Project: | D5: GVEA Zehnder PM2.5 BACT Analysis - Frame 5 CTs (EU ID 1 and 2, cost per turbine) | J5: Prepared By:
J6: Checked By:
B7: *Notes regarding pertinent cost information and cost exclusion reasoning is included on the separate footnote reference page. | J7: Rev:
B8: Annualized Costs
B9: DIRECT ANNUAL COSTS | E9: QTY | F9: UNIT | G9: UNIT COST | H9: TOTAL MATERIALS COST | I9: TOTAL LABOR COST | K9: TOTAL
B10: (1) | C10: Operating Labor | E10: =E13*2 -> 730 | F10: MH | G10: 105 | I10: =E10*G10 -> 76650 | K10: =I10 -> 76650
B11: (2) | C11: Supervisory Labor | E11: 183 | F11: MH | G11: 125 | I11: =E11*G11 -> 22875 | K11: =I11 -> 22875
B12: (3) | C12: Maintenance Labor (water treatment) | E12: =E16*1.29 -> 13950.83228 | F12: 1000 GALS | G12: =0.7*(1.05^25) -> 2.370448459 | I12: =E12*G12 -> 33069.72887 | K12: =I12 -> 33069.72887
B13: (4) | C13: Maintenance Labor (SCR system) | E13: =365*E55/100 -> 365 | F13: MH | G13: 105 | I13: =E13*G13 -> 38325 | K13: =I13 -> 38325
B14: (5) | C14: Maintenance Materials | F14: LOT | H14: =E14*G14 -> 0 | I14: Included in water treatment below | K14: =H14 -> 0
B15: (6) | C15: Utilities
C16: a) | D16: Water Use: | E16: =E18*0.73*7.21/(8.34*1000) -> 10814.59867 | F16: 1000 GALS | G16: =0.384*(1.05^25) -> 1.300360297 | H16: =E16*G16 -> 14062.87474 | K16: =H16 -> 14062.87474
C17: b) | D17: Water Pump Energy: | E17: =23.8*0.161*8760 -> 33566.568 | F17: kWh | G17: 0.18 | H17: =E17*G17 -> 6041.98224 | K17: =H17 -> 6041.98224
C18: c) | D18: CT Fuel Use: | E18: =268/137*1000*8760 -> 17136350.36 | F18: GALS
C19: d) | D19: Fuel Penalty: | E19: =E18*0.035*0.73 -> 437833.7518 | F19: GALS | G19: 1.7 | H19: =E19*G19 -> 744317.3781 | K19: =H19 -> 744317.3781
C20: e) | D20: Water Treatment Capacity: | E20: =E16*1.3*1.29 -> 18136.08196 | F20: 1000 GALS | G20: =1.97*(1.05^25) -> 6.671119234 | H20: =E20*G20 -> 120987.9652 | K20: =H20 -> 120987.9652
C21: f) | D21: Water Waste Disposal: | E21: =E20*0.29 -> 5259.463769 | F21: 1000 GALS | G21: =3.82*(1.05^25) -> 12.93587587 | H21: =E21*G21 -> 68035.77048 | K21: =H21 -> 68035.77048
C22: g) | D22: Urea/DEF: | E22: =(929.7-795.4)*(60)*2*2.2/2000 -> 17.7276 | F22: TON | G22: 356 | H22: =E22*G22 -> 6311.0256 | K22: =H22 -> 6311.0256
C23: h) | D23: SCR Energy Use8: | F23: kWh | G23: 0.18 | H23: Excluded in this estimate. | K23: =G23*E23 -> 0
B24: (7) | C24: Catalyst Replacement Costs (every 3 years)
C25: (a) | D25: Replacement of SCR Catalyst: % of total equipment cost | E25: 0.3 | F25: % total equip | G25: ='SCR+Water Injection TCI'!G14 -> 3000000 | H25: =G25*E25 -> 900000 | K25: =H25*E30 -> 279946.4991
C26: (b) | D26: Replacement labor for SCR Catalyst | E26: 180 | F26: MH | G26: 105 | I26: =E26*G26 -> 18900 | K26: =I26*E30 -> 5878.876481
C27: (c) | D27: Transport cost direct to site (SCR catalyst) | E27: 0.13 | F27: % replacement | I27: =E27*(H25) -> 117000 | K27: =I27*E30 -> 36393.04488
C28: (d) | D28: Transport cost for spent SCR catalyst | E28: 0.13 | F28: % replacement | I28: =E28*H25 -> 117000 | K28: =I28*E30 -> 36393.04488
B30: Sinking Fund Factor [see inputs below]: | E30: =($E$52/100)/(POWER(1+($E$52/100),($E$54)/($E$55/100))-1) -> 0.3110516657
B32: Total Direct Annual Costs (TDAC) | J32: TDAC = | K32: =SUM(K10:K31) -> 1489288.191
B34: INDIRECT ANNUAL COSTS
B35: (8) | C35: Overhead | E35: 0.3 | F35: % WT Labor | I35: =E35*I12 -> 9920.918662 | K35: =I35 -> 9920.918662
B36: (9) | C36: Administrative Charges, Property Taxes, Insurance | E36: 0.04 | F36: % total capital | I36: =E36*'SCR+Water Injection TCI'!K66 -> 749187.2 | K36: =I36 -> 749187.2
C37: Capital Recovery Factor [see inputs below] | E37: =($E$52/100*POWER((1+($E$52/100)),$E$53))/((POWER(((1+$E$52/100)),$E$53))-1) -> 0.09439292574
B38: (10) | C38: Capital Recovery | J38: CRF * TCI = | K38: =E37*'SCR+Water Injection TCI'!K66 -> 1767949.293
B40: Total Indirect Annual Costs (TIAC) | J40: TIAC = | K40: =SUM(K33:K38) -> 2527057.412
B42: TOTAL ANNUALIZED COSTS (TAC) | J42: TAC = (TDAC) + (TIAC) = | K42: =K32+K40 -> 4016345.603
B44: Cost Effectiveness Summary
B46: TOTAL TONS NOx AVOIDED PER YEAR | J46: = | K46: =1033*0.95 -> 981.35
B48: COST EFFECTIVENESS ($ PER TON AVOIDED) | J48: (TAC)/(TPY) = | K48: =K42/K46 -> 4092.673972
D51: Data Inputs for Capital Recovery Factor:
D52: Annual Interest Rate (EPA OAQPS Control Cost Manual) | E52: 7 | F52: %
D53: Project Life (EPA OAQPS Control Cost Manual) | E53: 20 | F53: years
D54: Catalyst Life | E54: 3 | F54: years
D55: Asset Utilization | E55: 100 | F55: %
B57: Footnotes:
B58: 1 | C58: For the water injection option, costs have been included for a water treatment system. Zehnder does not have any water treatment system, thus would need reverse osmosis, electro de-ionization, storage tanks, small pumps, and interconnecting piping. It is unlikely this equipment and reagent preparation equipment would fit inside the existing turbine building as it is all essential for normal maintenance and operation.
B59: 2 | C59: Source of SCR Capital Costs: ATCO Emissions Management. These were supply-only costs given in a range for the Frame 5s. The highpoint of the range provided ($2 – $3 million) was used.
B60: 3 | C60: Costs for reagent prep equipment and additional structures are discussed in a separately submitted CBI package.
B61: 4 | C61: Continuous emissions monitoring system is included in capital costs under Reagent Prep/Water Treatment/Structure.
B62: 5 | C62: Construction costs associated directly with SCR installation were conservatively estimated at double the capital cost. This seems reasonable given the current footprint of the turbine building. Additional structure costs were included under part (1)(a) This should be viewed as an engineering estimate only.
B63: 6 | C63: Construction costs associated directly with water injection installation was conservatively estimated at half the capital cost. This is based on the assumption that some water treatment system work in addition to SCR treated water needs will be required to add water injection. This should be viewed as an engineering estimate only.
B64: 7 | C64: Unit operator costs were excluded as these costs were not specified in vendor quotes and/or appropriate literature.
B65: 8 | C65: Annual direct cost for SCR power consumption were excluded as vendor quotes did not specify system power requirements. However the reagent solutions will require continual heating to keep them in liquid form and a notable station load compared to the unit actual operation is expected.
